bitfinex-derivatives/quotes_BNBF0:USTF0_20250305
["timestamp","ask_amount","ask_price","bid_price","bid_amount"]
[1741212129337,2.19421105,596.89,595.67,0.33575637]
[1741212129534,0.96904194,596.88,595.67,0.33575637]
[1741212130140,0.96904194,597.01,595.67,0.33575637]
[1741212130438,1.22516911,596.87,595.67,0.33575637]
[1741212131047,0.96904194,596.97,595.67,0.33575637]
[1741212131338,2.19421105,596.96,595.67,0.33575637]
[1741212131539,0.96904194,596.95,595.67,0.33575637]
[1741212131844,0.96904194,596.94,595.67,0.33575637]
[1741212132046,0.96904194,596.93,595.67,0.33575637]
[1741212132343,0.96904194,596.92,595.67,0.33575637]
[1741212132543,2.19421105,596.91,595.67,0.33575637]
[1741212132844,0.96904194,596.9,595.67,0.33575637]
[1741212133037,2.19421105,596.89,595.67,0.33575637]
[1741212133242,0.96904194,596.88,595.67,0.33575637]
[1741212133545,1.22516911,596.89,595.67,0.33575637]
[1741212133546,0.96904194,596.87,595.67,0.33575637]
[1741212133743,0.96904194,596.86,595.67,0.33575637]
[1741212133946,0.96904194,596.85,595.67,0.33575637]
[1741212134245,0.96904194,596.84,595.67,0.33575637]
[1741212135046,1.22516911,596.83,595.67,0.33575637]
[1741212135241,2.19421105,596.83,595.67,0.33575637]
[1741212135542,2.19421105,596.82,595.67,0.33575637]
[1741212135744,0.96904194,596.81,595.67,0.33575637]
[1741212136144,2.19421105,596.8,595.67,0.33575637]
[1741212136346,0.96904194,596.79,595.67,0.33575637]
[1741212136845,1.22516911,596.78,595.67,0.33575637]
[1741212137046,2.19421105,596.78,595.67,0.33575637]
[1741212137241,0.96904194,596.77,595.67,0.33575637]
[1741212137447,1.22516911,596.76,595.67,0.33575637]
[1741212138147,0.96904194,596.79,595.67,0.33575637]
[1741212138549,1.22516911,596.78,595.67,0.33575637]
[1741212139348,1.22516911,596.77,595.67,0.33575637]
[1741212139950,1.22516911,596.76,595.67,0.33575637]
[1741212140952,1.22516911,596.75,595.67,0.33575637]
[1741212141451,3.67802033,597.55,595.67,0.33575637]
[1741212141452,1.22516911,596.74,595.67,0.33575637]
[1741212141852,2.19421105,596.76,595.67,0.33575637]
[1741212142053,0.96904194,596.75,595.67,0.33575637]
[1741212142247,1.22516911,596.76,595.67,0.33575637]
[1741212142453,1.22516911,596.75,595.67,0.33575637]
[1741212142853,1.22516911,596.74,595.67,0.33575637]
[1741212143552,0.96904194,596.8,595.67,0.33575637]
[1741212143751,0.96904194,596.79,595.67,0.33575637]
[1741212143951,0.96904194,596.78,595.67,0.33575637]
[1741212144148,0.96904194,596.77,595.67,0.33575637]
[1741212144550,0.96904194,596.76,595.67,0.33575637]
[1741212144751,2.19421105,596.75,595.67,0.33575637]
[1741212144954,0.96904194,596.74,595.67,0.33575637]
[1741212145254,2.19421105,596.73,595.67,0.33575637]
[1741212145549,0.96992609,596.72,595.67,0.33575637]
[1741212145756,0.96992609,596.71,595.67,0.33575637]
[1741212145955,0.96992609,596.7,595.67,0.33575637]
[1741212146255,2.1950952,596.69,595.67,0.33575637]
[1741212146455,0.96992609,596.68,595.67,0.33575637]
[1741212146858,1.22516911,596.67,595.67,0.33575637]
[1741212147255,1.22516911,596.66,595.67,0.33575637]
[1741212147754,1.22516911,596.65,595.67,0.33575637]
[1741212148054,1.22516911,596.64,595.67,0.33575637]
[1741212148655,1.22516911,596.63,595.67,0.33575637]
[1741212149356,1.22516911,596.62,595.67,0.33575637]
[1741212149857,1.22516911,596.61,595.67,0.33575637]
[1741212150651,2.1950952,596.66,595.67,0.33575637]
[1741212150956,2.1950952,596.65,595.67,0.33575637]
[1741212151150,2.1950952,596.64,595.67,0.33575637]
[1741212151355,0.96992609,596.63,595.67,0.33575637]
[1741212151554,1.22516911,596.64,595.67,0.33575637]
[1741212152051,1.22516911,596.63,595.67,0.33575637]
[1741212152458,2.1950952,596.63,595.67,0.33575637]
[1741212152756,0.96992609,596.62,595.67,0.33575637]
[1741212152957,0.96992609,596.65,595.67,0.33575637]
[1741212153150,1.22516911,596.66,595.67,0.33575637]
[1741212153355,0.2919059,596.74,595.67,0.33575637]
[1741212153550,0.96992609,596.73,595.67,0.33575637]
[1741212153751,0.96992609,596.72,595.67,0.33575637]
[1741212153956,0.96992609,596.71,595.67,0.33575637]
[1741212154157,0.96992609,596.7,595.67,0.33575637]
[1741212154357,0.96992609,596.71,595.67,0.33575637]
[1741212154657,1.22516911,596.69,595.67,0.33575637]
[1741212154959,1.22516911,596.7,595.67,0.33575637]
[1741212155252,2.1950952,596.7,595.67,0.33575637]
[1741212155456,2.1950952,596.69,595.67,0.33575637]
[1741212155650,0.96992609,596.68,595.67,0.33575637]
[1741212155955,1.22516911,596.67,595.67,0.33575637]
[1741212156659,1.22516911,596.68,595.67,0.33575637]
[1741212156855,3.74697694,596.68,595.67,0.33575637]
[1741212157049,2.52180783,596.67,595.67,0.33575637]
[1741212157254,0.96992609,596.67,595.67,0.33575637]
[1741212157454,1.22516911,596.66,595.67,0.33575637]
[1741212158156,3.02480896,596.68,595.67,0.33575637]
[1741212158358,2.52180783,596.67,595.67,0.33575637]
[1741212158559,0.96992609,596.66,595.67,0.33575637]
[1741212158757,1.22516911,596.66,595.67,0.33575637]
[1741212159157,1.22516911,596.65,595.67,0.33575637]
[1741212160051,1.22516911,596.64,595.67,0.33575637]
[1741212160653,1.22516911,596.63,595.67,0.33575637]
[1741212161159,1.22516911,596.64,595.67,0.33575637]
[1741212161762,2.80316911,596.64,595.67,0.33575637]
[1741212161963,0.96992609,596.63,595.67,0.33575637]
[1741212162457,2.1950952,596.63,595.67,0.33575637]
[1741212162663,0.96992609,596.62,595.67,0.33575637]
[1741212162863,2.1950952,596.63,595.67,0.33575637]
[1741212163963,0.96836063,596.62,595.67,0.33575637]
[1741212164263,2.19352974,596.63,595.67,0.33575637]
[1741212168570,2.19352974,596.63,595.67,0.51875637]
[1741212169069,1.22516911,596.63,595.67,0.51875637]
[1741212169269,1.578,596.64,595.67,0.51875637]
[1741212171573,1.22417502,596.63,595.67,0.51875637]
[1741212171774,2.19220123,596.63,595.67,0.51875637]
[1741212171973,1.22417502,596.62,595.67,0.51875637]
[1741212172775,0.96802621,596.62,595.67,0.51875637]
[1741212172975,2.51686816,596.62,595.67,0.51875637]
[1741212173574,1.22417502,596.61,595.67,0.51875637]
[1741212175476,2.19220123,596.61,595.67,0.51875637]
[1741212175769,0.96802621,596.6,595.67,0.51875637]
[1741212175969,2.19220123,596.6,595.67,0.51875637]
[1741212176174,0.96802621,596.59,595.67,0.51875637]
[1741212176571,2.19220123,596.59,595.67,0.51875637]
[1741212176776,0.96802621,596.58,595.67,0.51875637]
[1741212176970,1.22417502,596.57,595.67,0.51875637]
[1741212177377,1.5161936,596.57,595.67,0.51875637]
[1741212177670,0.29201858,596.57,595.67,0.51875637]
[1741212178874,1.22417502,596.56,595.67,0.51875637]
[1741212179577,1.22417502,596.55,595.67,0.51875637]
[1741212180169,1.22417502,596.54,595.67,0.51875637]
[1741212180578,3.73778263,596.54,595.67,0.51875637]
[1741212180978,1.22417502,596.53,595.67,0.51875637]
[1741212181775,0.29201858,596.57,595.67,0.51875637]
[1741212181776,1.22417502,596.56,595.67,0.51875637]
[1741212182370,1.22417502,596.55,595.67,0.51875637]
[1741212182976,2.66417502,596.54,595.67,0.51875637]
[1741212183271,0.96671704,596.53,595.67,0.51875637]
[1741212183472,2.48292167,596.53,595.67,0.51875637]
[1741212183675,0.96671704,596.52,595.67,0.51875637]
[1741212183874,4.02966894,596.53,595.67,0.51875637]
[1741212184382,1.22417502,596.52,595.67,0.51875637]
[1741212184581,3.73763933,596.52,595.67,0.51875637]
[1741212184875,1.22417502,596.51,595.67,0.51875637]
[1741212185076,3.73763933,596.51,595.67,0.51875637]
[1741212185476,1.22417502,596.5,595.67,0.51875637]
[1741212185680,3.73763933,596.5,595.67,0.51875637]
[1741212185882,2.51346431,596.49,595.67,0.51875637]
[1741212186074,2.19089206,596.49,595.67,0.51875637]
[1741212186275,0.96671704,596.48,595.67,0.51875637]
[1741212186581,0.29203696,596.48,595.67,0.51875637]
[1741212191182,2.19089206,596.53,595.67,0.51875637]
[1741212192383,0.29194631,596.52,595.67,0.51875637]
[1741212194186,2.19089206,596.53,595.67,0.51875637]
[1741212194383,0.29194631,596.51,595.67,0.51875637]
[1741212197289,2.19089206,596.53,595.67,0.51875637]
[1741212197482,0.29194631,596.51,595.67,0.51875637]
[1741212199291,1.22417502,596.5,595.67,0.51875637]
[1741212199686,1.22417502,596.49,595.67,0.51875637]
[1741212200190,2.19089206,596.48,595.67,0.51875637]
[1741212200392,0.96671704,596.47,595.67,0.51875637]
[1741212200595,1.22417502,596.48,595.67,0.51875637]
[1741212200989,2.19089206,596.48,595.67,0.51875637]
[1741212201289,2.19089206,596.47,595.67,0.51875637]
[1741212201491,2.19089206,596.46,595.67,0.51875637]
[1741212201688,0.96671704,596.45,595.67,0.51875637]
[1741212201890,1.22417502,596.44,595.67,0.51875637]
[1741212202295,1.22417502,596.43,595.67,0.51875637]
[1741212202888,1.22417502,596.42,595.67,0.51875637]
[1741212203290,2.51316043,596.43,595.67,0.51875637]
[1741212203593,1.27501672,596.42,595.67,0.51875637]
[1741212203789,1.22417502,596.42,595.67,0.51875637]
[1741212204392,1.51627203,596.41,595.67,0.51875637]
[1741212204592,2.48298907,596.41,595.67,0.51875637]
[1741212204792,0.96671704,596.4,595.67,0.51875637]
[1741212204990,1.51627203,596.41,595.67,0.51875637]
[1741212205295,1.22417502,596.39,595.67,0.51875637]
[1741212205691,1.22417502,596.38,595.67,0.51875637]
[1741212206097,1.22417502,596.38,595.67,0.51112454]
[1741212206494,1.22417502,596.37,595.67,0.51112454]
[1741212207094,1.115,596.36,595.67,0.51112454]
[1741212207895,2.08171704,596.36,595.67,0.51112454]
[1741212208095,3.62816043,596.36,595.67,0.51112454]
[1741212208295,2.51316043,596.35,595.67,0.51112454]
[1741212208499,0.96671704,596.34,595.67,0.51112454]
[1741212208698,1.22417502,596.34,595.67,0.51112454]
[1741212209298,2.51316043,596.34,595.67,0.51112454]
[1741212209499,1.25892442,596.33,595.67,0.51112454]
[1741212209698,0.29220738,596.33,595.67,0.51112454]
[1741212211203,1.22417502,596.32,595.67,0.183]
[1741212211607,0.29220738,596.33,595.67,0.183]
[1741212212207,1.22417502,596.33,595.67,0.183]
[1741212212407,0.29222088,596.32,595.67,0.183]
[1741212213609,1.5163959,596.32,595.67,0.183]
[1741212214405,0.29222088,596.32,595.67,0.183]
[1741212215207,3.18285506,596.33,595.67,0.183]
[1741212215405,0.29214974,596.31,595.67,0.183]
[1741212216006,2.80531017,596.31,595.67,0.183]
[1741212216804,1.22417502,596.3,595.67,0.183]
[1741212217207,1.21405549,596.3,595.67,0.183]
[1741212217407,0.29214974,596.31,595.67,0.183]
[1741212219409,1.25886678,596.31,595.67,0.183]
[1741212219606,0.30834004,596.3,595.67,0.183]
[1741212220206,1.27505708,596.3,595.67,0.183]
[1741212220404,0.30834004,596.29,595.67,0.183]
[1741212220608,0.30834004,596.3,595.67,0.183]
[1741212220804,0.30834004,596.29,595.67,0.183]
[1741212221009,0.30834004,596.3,595.67,0.183]
[1741212221212,1.27505708,596.3,595.67,0.183]
[1741212221411,0.30834004,596.29,595.67,0.183]
[1741212221609,0.60050572,596.29,595.67,0.183]
[1741212221807,0.30834004,596.28,595.67,0.183]
[1741212223008,0.29216568,596.29,595.67,0.183]
[1741212224423,0.96671704,596.33,595.67,0.183]
[1741212224610,0.30833114,596.32,595.67,0.183]
[1741212224807,1.95868004,596.33,595.67,0.183]
[1741212225015,4.97524678,596.33,595.67,0.183]
[1741212225212,3.01656674,596.32,595.67,0.183]
[1741212225413,2.25084449,596.32,595.67,0.183]
[1741212225614,0.96671704,596.31,595.67,0.183]
[1741212226012,1.56721263,596.32,595.67,0.183]
[1741212226207,1.25888149,596.32,595.67,0.183]
[1741212226812,0.29216445,596.32,595.67,0.183]
[1741212227317,0.30833935,596.31,595.67,0.183]
[1741212227611,0.30833935,596.3,595.67,0.183]
[1741212227815,0.96671704,596.33,595.67,0.183]
[1741212228017,0.30834114,596.32,595.67,0.183]
[1741212228217,0.30834114,596.33,595.67,0.183]
[1741212228412,0.29216077,596.32,595.67,0.183]
[1741212228714,2.25084081,596.32,595.67,0.183]
[1741212228916,0.96671704,596.31,595.67,0.183]
[1741212229218,4.97524678,596.31,595.67,0.183]
[1741212229413,3.01657095,596.3,595.67,0.183]
[1741212229613,4.14630366,596.3,595.67,0.183]
[1741212229918,2.51316043,596.29,595.67,0.183]
[1741212230317,1.27505781,596.28,595.67,0.183]
[1741212230517,0.30834077,596.27,595.67,0.183]
[1741212231014,1.27406819,596.27,595.67,0.183]
[1741212231220,0.30834077,596.26,595.67,0.183]
[1741212231415,0.29216323,596.26,595.67,0.183]
[1741212231815,2.80340186,596.26,595.67,0.183]
[1741212232115,5.98298848,596.26,595.67,0.183]
[1741212232315,2.51123863,596.25,595.67,0.183]
[1741212232515,2.51154259,596.25,595.67,0.183]
[1741212232713,1.22090658,596.24,595.67,0.183]
[1741212233019,3.73244917,596.24,595.67,0.183]
[1741212233219,2.51154259,596.23,595.67,0.183]
[1741212233420,0.96597792,596.23,595.67,0.183]
[1741212233716,1.22090658,596.24,595.35,0.29216445]
[1741212234320,0.29216323,596.26,595.35,0.29216445]
[1741212236124,3.01496271,596.27,594.85,2.55509187]
[1741212236323,2.51154259,596.27,594.87,0.33620791]
[1741212236623,0.29215096,596.25,594.87,2.89129978]
[1741212236824,0.29215096,596.25,594.88,0.183]
[1741212237025,0.29215096,596.25,594.9,0.33619095]
[1741212237926,2.47966697,596.25,594.9,0.33619095]
[1741212238120,0.96660943,596.24,594.91,2.55509187]
[1741212238322,0.96660943,596.24,594.93,0.336174]
[1741212238826,0.29215096,596.25,594.93,0.336174]
[1741212239221,3.01658856,596.27,594.93,0.336174]
[1741212239424,0.29214115,596.24,594.93,0.336174]
[1741212239625,0.29214115,596.24,594.98,2.55509187]
[1741212239825,0.29214115,596.24,595.0,0.33613445]
[1741212240525,1.51304773,596.24,595.0,0.33613445]
[1741212241730,0.29214115,596.24,595.01,2.55509187]
[1741212241924,0.29214115,596.24,595.03,0.3361175]
[1741212242131,3.01658885,596.32,595.03,0.3361175]
[1741212242427,3.48792213,596.31,595.03,0.3361175]
[1741212242628,3.32492436,596.3,595.03,0.3361175]
[1741212242824,0.30833551,596.29,595.03,0.3361175]
[1741212243024,2.82152003,596.29,595.03,0.3361175]
[1741212243225,1.27494494,596.28,595.03,0.3361175]
[1741212243428,0.29212766,596.28,595.03,0.3361175]
[1741212243627,2.80531218,596.28,595.03,0.3361175]
[1741212244030,1.22090658,596.27,595.03,0.3361175]
[1741212244631,0.29212766,596.28,595.03,0.3361175]
[1741212245232,3.01658659,596.32,595.03,0.3361175]
[1741212245533,0.30832438,596.31,595.04,2.55509187]
[1741212245733,3.17958662,596.31,595.04,2.55509187]
[1741212245933,5.69277114,596.31,595.06,0.33610056]
[1741212246132,3.32491027,596.3,595.06,0.33610056]
[1741212246334,3.4879103,596.29,595.07,2.55509187]
[1741212246534,2.51318452,596.28,595.09,0.33608361]
[1741212247230,1.52924273,596.27,595.09,0.33608361]
[1741212247429,0.30833615,596.26,595.09,2.89117548]
[1741212247734,4.23749059,596.27,595.09,2.89117548]
[1741212247934,3.7340911,596.27,595.09,2.89117548]
[1741212248129,0.96660943,596.26,595.09,2.89117548]
[1741212248433,1.22090658,596.26,595.09,2.89117548]
[1741212248835,1.22090658,596.26,595.09,0.33608361]
[1741212249232,3.01658168,596.32,595.09,0.33608361]
[1741212249535,0.29213747,596.25,595.09,0.33608361]
[1741212249735,2.18751601,596.33,595.09,0.33608361]
[1741212249937,1.22090658,596.3,595.09,0.33608361]
[1741212250131,2.76748167,596.3,595.09,0.33608361]
[1741212250328,4.23748826,596.3,595.09,0.33608361]
[1741212250730,3.17958662,596.29,595.09,0.33608361]
[1741212251033,6.1961683,596.29,595.09,0.33608361]
[1741212251335,3.30870689,596.28,595.09,0.33608361]
[1741212251839,3.17958662,596.27,595.09,0.33608361]
[1741212252138,6.1961683,596.27,595.09,0.33608361]
[1741212252338,3.01658168,596.26,595.09,0.33608361]
[1741212252637,3.17958662,596.25,595.09,0.33608361]
[1741212252838,2.51318452,596.24,595.09,0.33608361]
[1741212253441,1.22090658,596.23,595.09,0.33608361]
[1741212253638,3.7340911,596.23,595.09,0.33608361]
[1741212254039,1.22090658,596.22,595.09,0.33608361]
[1741212254238,2.18751601,596.22,595.09,0.33608361]
[1741212254437,2.18751601,596.21,595.09,0.33608361]
[1741212254636,0.96660943,596.2,595.09,0.33608361]
[1741212255349,2.1900376,596.19,595.09,0.33608361]
[1741212255537,0.96913102,596.18,595.09,0.33608361]
[1741212255737,0.96913102,596.17,595.09,0.33608361]
[1741212255934,1.22090658,596.17,595.09,0.33608361]
[1741212256135,2.1900376,596.17,595.09,0.33608361]
[1741212256433,0.96913102,596.16,595.09,0.33608361]
[1741212256639,0.96913102,596.15,595.09,0.33608361]
[1741212256834,0.96913102,596.14,595.09,0.33608361]
[1741212257040,0.96913102,596.15,595.09,0.33608361]
[1741212257340,1.22090658,596.13,595.09,0.33608361]
[1741212257539,0.96913102,596.12,595.09,0.33608361]
[1741212257740,0.96913102,596.11,595.09,0.33608361]
[1741212258241,3.2290376,596.1,595.09,0.33608361]
[1741212258539,2.51974065,596.09,595.09,0.33608361]
[1741212258739,0.96913102,596.08,595.09,0.33608361]
[1741212259134,2.25990658,596.1,595.09,0.33608361]
[1741212259135,1.22090658,596.07,595.09,0.33608361]
[1741212259340,0.96913102,596.06,595.09,0.33608361]
[1741212259742,0.96913102,596.06,595.08,0.29216936]
[1741212260134,1.22090658,596.05,594.94,2.55509187]
[1741212260339,0.96913102,596.04,594.94,2.55509187]
[1741212260739,1.22090658,596.05,594.94,2.55509187]
[1741212261141,1.22090658,596.03,594.94,2.55509187]
[1741212261541,2.1900376,596.03,594.95,0.29217917]
[1741212261741,1.22090658,596.02,594.95,0.29217917]
[1741212262343,1.22090658,596.01,594.95,0.29217917]
[1741212262937,1.22090658,596.0,594.98,2.55509187]
[1741212263742,1.22090658,595.99,594.98,2.55509187]
[1741212264139,1.22090658,595.98,594.98,2.55509187]
[1741212264546,2.19218577,596.01,594.98,2.55509187]
[1741212264746,0.97127919,596.0,594.98,2.55509187]
[1741212265046,0.97127919,596.0,594.99,0.183]
[1741212265450,1.22090658,595.99,594.99,0.183]
[1741212265647,2.19218577,595.99,594.99,0.183]
[1741212265843,0.97127919,595.98,594.99,0.183]
[1741212266044,1.22090658,595.99,594.99,0.183]
[1741212266243,1.22090658,595.98,594.99,0.183]
[1741212266746,2.19218577,596.03,594.99,0.183]
[1741212266947,0.97127919,596.02,594.99,0.183]
[1741212267146,0.97127919,596.01,594.99,0.183]
[1741212267343,1.22090658,596.01,594.99,0.183]
[1741212267544,0.97127919,596.0,594.99,0.183]
[1741212267743,1.22090658,595.99,594.99,0.183]
[1741212267942,2.19218577,595.99,594.99,0.183]
[1741212268151,2.19218577,595.98,594.99,0.183]
[1741212268341,0.97127919,595.97,594.99,0.183]
[1741212268541,1.22090658,595.98,594.99,0.183]
[1741212268747,1.22090658,595.97,594.99,0.183]
[1741212269648,1.22090658,595.96,594.99,0.183]
[1741212270548,2.19288371,596.04,594.99,0.183]
[1741212270947,2.19288371,596.03,594.99,0.183]
[1741212271156,0.97197713,596.02,594.99,0.183]
[1741212271345,1.22907254,596.01,594.99,0.183]
[1741212271950,2.52696437,596.06,594.99,0.183]
[1741212271951,1.22907254,596.0,594.99,0.183]
[1741212272651,0.97197713,596.03,594.99,0.183]
[1741212272848,1.22907254,596.04,594.99,0.183]
[1741212273248,1.22907254,596.03,594.99,0.183]
[1741212273647,1.22907254,596.02,594.99,0.183]
[1741212273853,2.20104967,596.02,594.99,0.183]
[1741212274052,0.97197713,596.01,594.99,0.183]
[1741212274248,2.20104967,596.07,594.99,0.183]
[1741212274446,0.97197713,596.06,594.99,0.183]
[1741212274651,2.20104967,596.05,594.99,0.183]
[1741212274848,0.97197713,596.04,594.99,0.183]
[1741212275048,2.20104967,596.04,594.99,0.183]
[1741212275252,0.97197713,596.03,594.99,0.183]
[1741212275447,1.22907254,596.04,594.99,0.183]
[1741212275650,1.22907254,596.02,594.99,0.183]
[1741212276256,1.22907254,596.01,594.99,0.183]
[1741212276658,0.97197713,596.08,594.99,0.183]
[1741212276856,0.97197713,596.07,594.99,0.183]
[1741212277155,0.97197713,596.06,594.99,0.183]
[1741212277357,0.97197713,596.05,594.99,0.183]
[1741212277756,1.22907254,596.04,594.99,0.183]
[1741212277951,0.97197713,596.03,594.99,0.183]
[1741212278151,1.22907254,596.04,594.99,2.73809187]
[1741212278152,0.97197713,596.02,594.99,2.73809187]
[1741212278351,0.97197713,596.01,594.99,2.73809187]
[1741212278555,0.97197713,596.0,594.99,2.73809187]
[1741212278755,2.20104967,596.03,594.99,2.73809187]
[1741212278956,0.97197713,596.02,594.99,2.73809187]
[1741212279153,2.20104967,596.01,594.99,2.73809187]
[1741212279352,0.97197713,596.0,594.99,2.73809187]
[1741212279553,1.22907254,595.99,594.99,2.73809187]
[1741212279755,2.20104967,595.99,594.99,2.73809187]
[1741212279957,0.97197713,595.98,594.99,2.73809187]
[1741212280251,1.22907254,595.98,594.99,2.73809187]
[1741212280653,1.22907254,595.97,594.99,2.73809187]
[1741212281056,1.22907254,595.97,595.0,0.33613445]
[1741212281260,2.20104967,595.97,595.0,0.33613445]
[1741212281461,1.22907254,595.97,595.0,0.33613445]
[1741212281658,2.20093322,596.04,595.0,2.89122632]
[1741212281860,0.97186068,596.03,595.0,2.89122632]
[1741212282062,0.97186068,596.02,595.0,2.89122632]
[1741212282261,0.97186068,596.01,595.0,2.89122632]
[1741212282458,0.97186068,596.02,595.0,2.89122632]
[1741212282663,2.20093322,596.01,595.0,2.89122632]
[1741212282857,0.97186068,596.0,595.0,2.89122632]
[1741212283063,1.22907254,596.0,595.0,2.89122632]
[1741212283662,1.22907254,595.99,595.0,2.89122632]
[1741212284057,1.22907254,595.98,595.0,2.89122632]
[1741212284865,1.22907254,595.97,595.0,2.89122632]
[1741212285370,1.22907254,595.97,595.0,0.33613445]
[1741212285668,1.22907254,595.96,595.0,0.33613445]
[1741212286162,1.22907254,595.95,595.01,0.183]
[1741212286366,1.22907254,595.95,595.02,0.33612315]
[1741212286562,1.22907254,595.94,595.02,0.33612315]
[1741212287568,1.22907254,595.93,595.02,0.33612315]
[1741212288264,0.97199996,596.01,595.02,0.33612315]
[1741212288463,1.22907254,596.02,595.02,0.33612315]
[1741212288867,1.22907254,596.01,595.02,0.33612315]
[1741212289368,1.22907254,596.0,595.02,0.33612315]
[1741212290369,1.22907254,595.99,595.02,0.33612315]
[1741212291267,1.22907254,595.98,595.02,0.33612315]
[1741212292073,1.22907254,595.97,595.02,0.33612315]
[1741212292466,1.22907254,595.96,595.02,0.33612315]
[1741212292666,2.74307254,595.96,595.02,0.33612315]
[1741212293165,1.22907254,595.95,595.02,0.33612315]
[1741212294068,1.514,595.96,595.02,0.33612315]
[1741212298671,1.514,595.96,595.05,2.55509187]
[1741212298873,1.514,595.96,595.07,0.33609491]
[1741212302480,1.514,595.96,595.09,2.55509187]
[1741212304175,1.514,595.96,595.07,0.33609491]
[1741212307375,1.514,595.96,595.08,0.183]
[1741212307580,1.514,595.96,595.1,0.33607797]
[1741212321894,0.29208966,596.64,595.1,0.33607797]
[1741212324892,1.185,596.63,595.1,0.33607797]
[1741212327596,0.2920725,596.62,595.1,0.33607797]
[1741212327800,0.2920725,596.62,595.11,0.183]
[1741212327999,0.2920725,596.62,595.13,0.33606102]
[1741212329295,1.185,596.63,595.13,0.33606102]
[1741212329701,0.29198918,596.61,595.13,0.33606102]
[1741212332302,0.96299603,596.62,595.13,0.33606102]
[1741212332898,1.185,596.63,595.13,0.33606102]
[1741212333504,0.29205289,596.62,595.13,0.33606102]
[1741212335205,1.185,596.63,595.13,0.33606102]
[1741212337108,1.185,596.63,595.33,2.55509187]
[1741212337309,1.185,596.63,595.35,0.33593684]
[1741212339107,1.185,596.63,595.38,2.55509187]
[1741212339405,1.185,596.63,595.4,0.33590863]
[1741212343814,1.185,596.63,595.49,2.55509187]
[1741212344015,1.185,596.63,595.51,0.33584658]
[1741212353023,1.185,596.63,595.52,0.183]
[1741212353624,1.185,596.63,595.54,0.33582966]
[1741212360628,0.29194631,596.62,595.54,0.33582966]
[1741212361429,1.50961951,596.62,595.54,0.33582966]
[1741212361828,0.29194631,596.62,595.54,0.33582966]
[1741212362234,1.185,596.63,595.54,0.33582966]
[1741212362427,3.13405363,596.63,595.54,0.33582966]
[1741212362628,3.73377832,596.62,595.54,0.33582966]
[1741212363229,1.2176732,596.61,595.54,0.33582966]
[1741212363426,4.02580057,596.61,595.54,0.33582966]
[1741212363631,0.96773274,596.6,595.54,0.33582966]
[1741212363833,1.2176732,596.6,595.54,0.33582966]
[1741212364230,1.25975499,596.61,595.54,0.33582966]
[1741212364431,0.29202225,596.61,595.54,0.33582966]
[1741212365235,2.18540594,596.62,595.54,0.33582966]
[1741212365734,0.96773274,596.62,595.54,0.33582966]
[1741212366332,1.185,596.63,595.54,0.33582966]
[1741212367938,0.29197448,596.66,595.54,0.33582966]
[1741212368340,0.96773274,596.72,595.54,0.33582966]
[1741212368638,1.2176732,596.65,595.54,0.33582966]
[1741212368841,3.73433859,596.72,595.54,0.33582966]
[1741212369442,1.2176732,596.71,595.54,0.33582966]
[1741212370141,1.22416394,596.75,595.54,0.33582966]
[1741212370843,2.19189668,596.75,595.54,0.33582966]
[1741212371141,0.96773274,596.74,595.54,0.33582966]
[1741212371338,1.408,596.74,595.54,0.33582966]
[1741212371734,3.92466539,596.74,595.54,0.33582966]
[1741212371935,5.69949164,596.73,595.54,0.33582966]
[1741212372139,2.51666539,596.72,595.54,0.33582966]
[1741212372638,1.22416394,596.71,595.54,0.33582966]
[1741212373044,1.22416394,596.7,595.54,0.33582966]
[1741212373637,1.22416394,596.69,595.54,0.33582966]
[1741212374239,1.22416394,596.68,595.54,0.33582966]
[1741212375041,1.22416394,596.7,595.54,0.33582966]
[1741212375438,1.22416394,596.69,595.54,0.33582966]
[1741212376037,2.51711837,596.71,595.54,0.33582966]
[1741212376038,1.22416394,596.7,595.54,0.33582966]
[1741212376238,1.22416394,596.7,595.54,0.51882966]
[1741212376442,1.22416394,596.69,595.54,0.51882966]
[1741212376946,1.22416394,596.68,595.54,0.51882966]
[1741212378045,1.22416394,596.67,595.54,0.51882966]
[1741212378641,1.22416394,596.66,595.54,0.51882966]
[1741212379446,0.96812245,596.68,595.54,0.51882966]
[1741212379648,1.22416394,596.69,595.54,0.51882966]
[1741212380147,2.19228639,596.69,595.54,0.51882966]
[1741212380348,0.96812245,596.68,595.54,0.51882966]
[1741212381040,0.96812245,596.7,595.54,0.51882966]
[1741212381243,1.22416394,596.71,595.54,0.51882966]
[1741212385846,2.51731571,596.72,595.54,0.51882966]
[1741212386049,2.19228639,596.71,595.54,0.51882966]
[1741212386249,0.96812245,596.7,595.54,0.51882966]
[1741212386449,1.22416394,596.71,595.54,0.51882966]
[1741212389452,1.22416394,596.7,595.54,0.51882966]
[1741212389956,3.74147965,596.71,595.54,0.51882966]